fUST/lending_fUST_20250407
["ID","MTS","AMOUNT","RATE_DAILY","PERIOD"]
[357359708,1744018240019,-151.0,0.00036968,14]
[357359709,1744018240028,-151.0,0.00036968,14]
[357359710,1744018240037,-151.0,0.00036968,14]
[357359711,1744018240046,-151.0,0.00036968,14]
[357359712,1744018240056,-245.882523,0.00036968,14]
[357359713,1744018240066,-151.0,0.00036968,14]
[357359714,1744018240075,-309.910532,0.00036968,2]
[357359715,1744018240085,-309.910532,0.00036968,2]
[357359716,1744018240095,-309.910532,0.00036968,2]
[357359717,1744018240104,-309.910532,0.00036968,2]
[357359718,1744018240114,-416.73329,0.00036968,14]
[357359719,1744018240123,-416.73329,0.00036968,14]
[357359720,1744018240135,-151.0,0.00036968,14]
[357359721,1744018240144,-151.0,0.00036968,14]
[357359722,1744018240153,-416.73329,0.00036968,14]
[357359723,1744018240162,-416.73329,0.00036968,14]
[357359724,1744018240172,-151.0,0.00036968,14]
[357359725,1744018240181,-151.0,0.00036968,14]
[357359726,1744018240192,-2880.25687,0.00036968,14]
[357359727,1744018240202,-2880.25687,0.00036968,14]
[357359728,1744018240213,-226.530204,0.00036968,14]
[357359729,1744018240223,-226.530204,0.00036968,14]
[357359730,1744018240234,-151.0,0.00036968,14]
[357359731,1744018240244,-226.530204,0.00036968,14]
[357359732,1744018240253,-226.530204,0.00036968,14]
[357359733,1744018240263,-647.806011,0.00036968,14]
[357359734,1744018240272,-647.806011,0.00036968,14]
[357359735,1744018240281,-647.806011,0.00036968,14]
[357359736,1744018240290,-647.806011,0.00036968,14]
[357359737,1744018240299,-972.41845118,0.0003697,3]
[357359738,1744018240308,-526.75180412,0.00036973,5]
[357359739,1744018240318,-500.0,0.00036973,5]
[357359740,1744018240327,-249.13127612,0.00036973,5]
[357359741,1744018240336,-500.0,0.00036973,5]
[357359742,1744018240346,-151.0,0.00036978,14]
[357359743,1744018240354,-151.0,0.00036978,14]
[357359744,1744018240363,-151.0,0.00036978,14]
[357359745,1744018240372,-151.0,0.00036978,14]
[357359746,1744018240383,-151.0,0.00036978,14]
[357359747,1744018240392,-309.910532,0.00036978,2]
[357359748,1744018240402,-151.0,0.00036978,14]
[357359749,1744018240411,-309.910532,0.00036978,2]
[357359750,1744018240420,-416.73329,0.00036978,14]
[357359751,1744018240429,-151.0,0.00036978,14]
[357359752,1744018240439,-416.73329,0.00036978,14]
[357359753,1744018240448,-151.0,0.00036978,14]
[357359754,1744018240457,-2880.25687,0.00036978,14]
[357359755,1744018240466,-2880.25687,0.00036978,14]
[357359756,1744018240475,-2880.25687,0.00036978,14]
[357359757,1744018240484,-2880.25687,0.00036978,14]
[357359758,1744018240493,-226.530204,0.00036978,14]
[357359759,1744018240503,-151.0,0.00036978,14]
[357359760,1744018240512,-226.530204,0.00036978,14]
[357359761,1744018240521,-647.806011,0.00036978,14]
[357359762,1744018240530,-647.806011,0.00036978,14]
[357359763,1744018240539,-151.0,0.00036978,2]
[357359764,1744018240548,-200.0,0.00036978,2]
[357359765,1744018240558,-7037.99941792,0.0003698,2]
[357359766,1744018240567,-35186.364178,0.0003698,3]
[357359767,1744018240577,-972.41845118,0.0003698,3]
[357359768,1744018240586,-151.0,0.0003699,14]
[357359769,1744018240595,-151.0,0.0003699,14]
[357359770,1744018240605,-151.0,0.0003699,14]
[357359771,1744018240614,-309.910532,0.0003699,2]
[357359772,1744018240624,-309.910532,0.0003699,2]
[357359773,1744018240634,-151.0,0.0003699,14]
[357359774,1744018240643,-416.73329,0.0003699,14]
[357359775,1744018240653,-151.0,0.0003699,14]
[357359776,1744018240662,-416.73329,0.0003699,14]
[357359777,1744018240671,-151.0,0.0003699,14]
[357359778,1744018240681,-226.530204,0.0003699,14]
[357359779,1744018240690,-226.530204,0.0003699,14]
[357359780,1744018240700,-647.806011,0.0003699,14]
[357359781,1744018240709,-647.806011,0.0003699,14]
[357359782,1744018240719,-160.0,0.0003699,3]
[357359783,1744018240728,-35186.364178,0.0003699,3]
[357359784,1744018240737,-3889.67380472,0.0003699,3]
[357359785,1744018240747,-160.0,0.0003699,3]
[357359786,1744018240756,-151.0,0.00037,14]
[357359787,1744018240766,-212.397565,0.00037,14]
[357359788,1744018240775,-151.0,0.00037,14]
[357359789,1744018240784,-151.0,0.00037,14]
[357359790,1744018240794,-309.910532,0.00037,2]
[357359791,1744018240803,-309.910532,0.00037,2]
[357359792,1744018240812,-151.0,0.00037,14]
[357359793,1744018240822,-416.73329,0.00037,14]
[357359794,1744018240831,-151.0,0.00037,14]
[357359795,1744018240840,-416.73329,0.00037,14]
[357359796,1744018240849,-151.0,0.00037,14]
[357359797,1744018240859,-205.29532026,0.00037,14]
[357359798,1744018240868,-179044.2623832,0.00037,2]
[357359799,1744018240878,-2880.25687,0.00037,14]
[357359800,1744018240888,-2880.25687,0.00037,14]
[357359801,1744018240898,-226.530204,0.00037,14]
[357359802,1744018240907,-226.530204,0.00037,14]
[357359803,1744018240916,-2577.0,0.00037,7]
[357359804,1744018240925,-647.806011,0.00037,14]
[357359805,1744018240935,-647.806011,0.00037,14]
[357359806,1744018240944,-151.0,0.00037,10]
[357359807,1744018240953,-156.587,0.00037033,2]
[357359808,1744018240963,-2767.68361372,0.00037072,13]
[357359809,1744018240972,-2045.76761485,0.00037085,103]
[357359810,1744018240981,-162.380719,0.00037088,2]
[357359811,1744018240990,-1000.0,0.000371,24]
[357359812,1744018240999,-253.07784618,0.00037143,2]
[357359813,1744018241008,-151.0,0.000372,12]
[357359814,1744018241017,-1271.08,0.0003736,3]
[357359815,1744018241026,-635.54,0.0003736,3]
[357359816,1744018241036,-317.76,0.0003736,3]
[357359817,1744018241045,-190.0,0.000374,14]
[357359818,1744018241054,-151.0,0.000374,16]
[357359819,1744018241063,-12527.9349248,0.00037449,2]
[357359820,1744018241072,-419.36665037,0.00037449,2]
[357359821,1744018241081,-187.14101864,0.0003745,2]
[357359822,1744018241091,-4000.0,0.000375,50]
[357359823,1744018241100,-151.0,0.000375,10]
[357359824,1744018241109,-151.0,0.000375,11]
[357359825,1744018241118,-175.45227962,0.000375,2]
[357359826,1744018241128,-151.0,0.00037521,14]
[357359827,1744018241137,-151.0,0.00037521,14]
[357359828,1744018241146,-309.910532,0.00037521,2]
[357359829,1744018241165,-309.910532,0.00037521,2]
[357359830,1744018241176,-416.73329,0.00037521,14]
[357359831,1744018241186,-151.0,0.00037521,14]
[357359832,1744018241196,-416.73329,0.00037521,14]
[357359833,1744018241209,-151.0,0.00037521,14]
[357359834,1744018241218,-226.530204,0.00037521,14]
[357359835,1744018241229,-226.530204,0.00037521,14]
[357359836,1744018241238,-647.806011,0.00037521,14]
[357359837,1744018241248,-647.806011,0.00037521,14]
[357359838,1744018241257,-151.0,0.00037542,14]
[357359839,1744018241267,-2880.25687,0.00037542,14]
[357359840,1744018241277,-2880.25687,0.00037542,14]
[357359841,1744018241286,-972.41845118,0.00037542,3]
[357359842,1744018241296,-12527.9349248,0.00037552,3]
[357359843,1744018241305,-679.56509734,0.00037552,3]
[357359844,1744018241316,-151.0,0.00037553,14]
[357359845,1744018241325,-151.0,0.00037553,14]
[357359846,1744018241335,-309.910532,0.00037553,2]
[357359847,1744018241344,-309.910532,0.00037553,2]
[357359848,1744018241354,-416.73329,0.00037553,14]
[357359849,1744018241364,-151.0,0.00037553,14]
[357359850,1744018241374,-416.73329,0.00037553,14]
[357359851,1744018241387,-240.138796,0.00037553,14]
[357359852,1744018241396,-2880.25687,0.00037553,14]
[357359853,1744018241406,-2880.25687,0.00037553,14]
[357359854,1744018241416,-226.530204,0.00037553,14]
[357359855,1744018241426,-226.530204,0.00037553,14]
[357359856,1744018241436,-647.806011,0.00037553,14]
[357359857,1744018241447,-647.806011,0.00037553,14]
[357359858,1744018241458,-500.0,0.00037562,120]
[357359859,1744018241469,-500.0,0.00037562,120]
[357359860,1744018241479,-261.611118,0.00037562,14]
[357359861,1744018241490,-261.611118,0.00037562,14]
[357359862,1744018241500,-733.427941,0.00037562,14]
[357359863,1744018241510,-733.427941,0.00037562,14]
[357359864,1744018241520,-733.427941,0.00037562,14]
[357359865,1744018241530,-733.427941,0.00037562,14]
[357359866,1744018241540,-151.0,0.00037562,14]
[357359867,1744018241552,-151.0,0.00037562,14]
[357359868,1744018241562,-151.0,0.00037562,14]
[357359869,1744018241572,-151.0,0.00037562,14]
[357359870,1744018241582,-151.0,0.00037562,14]
[357359871,1744018241592,-151.0,0.00037562,14]
[357359872,1744018241601,-408.558595,0.00037562,14]
[357359873,1744018241611,-408.558595,0.00037562,14]
[357359874,1744018241755,-151.0,0.00037562,14]
[357359875,1744018241766,-235.536953,0.00037562,14]
[357359876,1744018241775,-408.558595,0.00037562,14]
[357359877,1744018241784,-408.558595,0.00037562,14]
[357359878,1744018241795,-151.0,0.00037562,14]
[357359879,1744018241804,-151.0,0.00037562,14]
[357359880,1744018241814,-151.0,0.00037562,14]
[357359881,1744018241823,-153.674293,0.00037562,14]
[357359882,1744018241833,-151.0,0.00037562,14]
[357359883,1744018241843,-354.37071,0.00037562,14]
[357359884,1744018241852,-354.37071,0.00037562,14]
[357359885,1744018241862,-354.37071,0.00037562,14]
[357359886,1744018241871,-354.37071,0.00037562,14]
[357359887,1744018241882,-354.37071,0.00037562,14]
[357359888,1744018241892,-354.37071,0.00037562,14]
[357359889,1744018241901,-151.0,0.00037562,14]
[357359890,1744018241912,-175.368787,0.00037562,14]
[357359891,1744018241922,-366.689519,0.00037562,14]
[357359892,1744018241931,-366.689519,0.00037562,14]
[357359893,1744018241941,-151.0,0.00037562,14]
[357359894,1744018241950,-383.156646,0.00037562,14]
[357359895,1744018241961,-383.156646,0.00037562,14]
[357359896,1744018241971,-326.229334,0.00037562,14]
[357359897,1744018241981,-326.229334,0.00037562,14]
[357359898,1744018241991,-151.0,0.00037562,14]
[357359899,1744018242001,-151.0,0.00037562,14]
[357359900,1744018242011,-151.0,0.00037562,14]
[357359901,1744018242022,-157.475513,0.00037562,14]
[357359902,1744018242032,-204.306428,0.00037562,14]
[357359903,1744018242042,-157.475513,0.00037562,14]
[357359904,1744018242052,-151.0,0.00037562,14]
[357359905,1744018242062,-204.306428,0.00037562,14]
[357359906,1744018242072,-151.0,0.00037562,14]
[357359907,1744018242083,-151.0,0.00037562,14]
[357359908,1744018242093,-309.910532,0.00037562,2]
[357359909,1744018242103,-151.0,0.00037562,14]
[357359910,1744018242112,-309.910532,0.00037562,2]
[357359911,1744018242122,-416.73329,0.00037562,14]
[357359912,1744018242135,-151.0,0.00037562,14]
[357359913,1744018242144,-416.73329,0.00037562,14]
[357359914,1744018242154,-2880.25687,0.00037562,14]
[357359915,1744018242164,-2880.25687,0.00037562,14]
[357359916,1744018242175,-226.530204,0.00037562,14]
[357359917,1744018242186,-226.530204,0.00037562,14]
[357359918,1744018242198,-498.825,0.00037562,48]
[357359919,1744018242208,-647.806011,0.00037562,14]
[357359920,1744018242217,-647.806011,0.00037562,14]
[357359921,1744018242227,-151.0,0.00037562,14]
[357359922,1744018242236,-170.316298,0.00037562,14]
[357359923,1744018242246,-972.41845118,0.00037563,3]
[357359924,1744018242256,-500.0,0.00037573,5]
[357359925,1744018242265,-500.0,0.00037573,5]
[357359926,1744018242276,-500.0,0.00037573,5]
[357359927,1744018242286,-500.0,0.00037573,5]
[357359928,1744018242296,-500.0,0.00037573,5]
[357359929,1744018242305,-500.0,0.00037573,5]
[357359930,1744018242315,-500.0,0.00037573,5]
[357359931,1744018242324,-500.0,0.00037573,5]
[357359932,1744018242333,-500.0,0.00037573,5]
[357359933,1744018242342,-500.58371304,0.00037573,5]
[357359934,1744018242352,-500.48228399,0.00037573,5]
[357359935,1744018242363,-500.73010387,0.00037573,5]
[357359936,1744018242372,-500.91301677,0.00037573,3]
[357359937,1744018242386,-500.0,0.00037573,5]
[357359938,1744018242396,-302.39232454,0.00037573,5]
[357359939,1744018242406,-500.0,0.00037573,5]
[357359940,1744018242416,-500.0,0.00037573,5]
[357359941,1744018242426,-500.0,0.00037573,5]
[357359942,1744018242436,-501.90114143,0.00037573,5]
[357359943,1744018242446,-157.475513,0.00037573,14]
[357359944,1744018242456,-157.475513,0.00037573,14]
[357359945,1744018242466,-151.0,0.00037573,14]
[357359946,1744018242476,-235.62355649,0.00037582,14]
[357359947,1744018242486,-151.0,0.00037582,14]
[357359948,1744018242496,-151.0,0.00037588,14]
[357359949,1744018242505,-383.156646,0.00037588,14]
[357359950,1744018242515,-383.156646,0.00037588,14]
[357359951,1744018242524,-151.0,0.00037588,14]
[357359952,1744018242533,-261.611118,0.00037592,14]
[357359953,1744018242543,-733.427941,0.00037592,14]
[357359954,1744018242552,-733.427941,0.00037592,14]
[357359955,1744018242562,-151.0,0.00037592,14]
[357359956,1744018242573,-408.558595,0.00037592,14]
[357359957,1744018242583,-408.558595,0.00037592,14]
[357359958,1744018242594,-151.0,0.00037592,14]
[357359959,1744018242604,-151.0,0.00037592,14]
[357359960,1744018242614,-354.37071,0.00037592,14]
[357359961,1744018242623,-354.37071,0.00037592,14]
[357359962,1744018242635,-151.0,0.00037592,14]
[357359963,1744018242644,-366.689519,0.00037592,14]
[357359964,1744018242654,-366.689519,0.00037592,14]
[357359965,1744018242664,-326.229334,0.00037592,14]
[357359966,1744018242673,-326.229334,0.00037592,14]
[357359967,1744018242683,-151.0,0.00037592,14]
[357359968,1744018242692,-157.475513,0.00037592,14]
[357359969,1744018242701,-204.306428,0.00037592,14]
[357359970,1744018242711,-157.475513,0.00037592,14]
[357359971,1744018242721,-151.0,0.00037592,14]
[357359973,1744018242731,-204.306428,0.00037592,14]
[357359974,1744018242740,-151.0,0.00037592,14]
[357359975,1744018242750,-151.0,0.00037592,14]
[357359976,1744018242759,-309.910532,0.00037592,2]
[357359977,1744018242768,-309.910532,0.00037592,2]
[357359978,1744018242778,-151.0,0.00037592,14]
[357359979,1744018242787,-416.73329,0.00037592,14]
[357359980,1744018242797,-151.0,0.00037592,14]
[357359981,1744018242806,-416.73329,0.00037592,14]
[357359983,1744018242816,-2880.25687,0.00037592,14]
[357359985,1744018242825,-2880.25687,0.00037592,14]
[357359988,1744018242835,-226.530204,0.00037592,14]
[357359990,1744018242844,-226.530204,0.00037592,14]
[357359993,1744018242853,-647.806011,0.00037592,14]
[357359995,1744018242863,-647.806011,0.00037592,14]
[357359997,1744018242872,-2000.0,0.00037596,2]
[357359999,1744018242884,-156.27527195,0.00037596,2]
[357360001,1744018242894,-151.0,0.000376,14]
[357360003,1744018242903,-151.0,0.000376,14]
[357360004,1744018242913,-1000.0,0.000376,24]
[357360005,1744018242924,-972.41845118,0.000376,3]
[357360006,1744018242933,-37821.4060962,0.0003761,2]
[357360008,1744018242943,-151.0,0.00037632,14]
[357360012,1744018242953,-151.0,0.00037632,14]
[357360016,1744018242962,-265.508741,0.00037632,14]
[357360019,1744018242971,-151.0,0.00037632,14]
[357360021,1744018242981,-383.156646,0.00037632,14]
[357360023,1744018242990,-383.156646,0.00037632,14]
[357360025,1744018242999,-161.35769188,0.00037653,2]
[357360027,1744018243009,-234.01777134,0.00037653,2]
[357360029,1744018243018,-303.375879,0.00037654,14]
[357360031,1744018243027,-303.375879,0.00037654,14]
[357360034,1744018243037,-151.0,0.00037654,14]
[357360036,1744018243046,-151.0,0.00037654,14]
[357360037,1744018243055,-151.0,0.00037654,14]
[357360039,1744018243064,-151.0,0.00037654,14]
[357360041,1744018243074,-1203.337461,0.00037654,14]
[357360043,1744018243083,-1203.337461,0.00037654,14]
[357360045,1744018243093,-882.467378,0.00037654,14]
[357360047,1744018243103,-882.467378,0.00037654,14]
[357360049,1744018243112,-542.49516,0.00037654,14]
[357360051,1744018243122,-542.49516,0.00037654,14]
[357360053,1744018243133,-185.276685,0.00037654,14]
[357360055,1744018243142,-185.276685,0.00037654,14]
[357360057,1744018243152,-546.228828,0.00037654,14]
[357360059,1744018243162,-546.228828,0.00037654,14]
[357360061,1744018243171,-151.0,0.00037654,14]
[357360062,1744018243180,-522.793102,0.00037654,14]
[357360063,1744018243190,-522.793102,0.00037654,14]
[357360064,1744018243202,-151.0,0.00037654,14]
[357360066,1744018243212,-151.0,0.00037654,14]
[357360068,1744018243221,-151.0,0.00037664,14]
[357360070,1744018243231,-242.700588,0.00037664,14]
[357360072,1744018243240,-296.109562,0.00037664,14]
[357360074,1744018243249,-296.109562,0.00037664,14]
[357360075,1744018243258,-303.375879,0.00037664,14]
[357360076,1744018243267,-303.375879,0.00037664,14]
[357360077,1744018243279,-151.0,0.00037664,14]
[357360078,1744018243289,-733.427941,0.00037664,14]
[357360079,1744018243299,-733.427941,0.00037664,14]
[357360080,1744018243308,-151.0,0.00037664,14]
[357360081,1744018243318,-151.0,0.00037664,14]
[357360082,1744018243327,-408.558595,0.00037664,14]
[357360083,1744018243337,-408.558595,0.00037664,14]
[357360084,1744018243347,-151.0,0.00037664,14]
[357360085,1744018243356,-354.37071,0.00037664,14]
[357360086,1744018243367,-354.37071,0.00037664,14]
[357360087,1744018243377,-151.0,0.00037664,14]
[357360088,1744018243387,-366.689519,0.00037664,14]
[357360090,1744018243397,-366.689519,0.00037664,14]
[357360091,1744018243406,-151.0,0.00037664,14]
[357360092,1744018243416,-383.156646,0.00037664,14]
[357360093,1744018243530,-383.156646,0.00037664,14]
[357360094,1744018243541,-326.229334,0.00037664,14]
[357360095,1744018243550,-326.229334,0.00037664,14]
[357360096,1744018243560,-151.0,0.00037664,14]
[357360097,1744018243569,-151.0,0.00037664,14]
[357360098,1744018243579,-157.475513,0.00037664,14]
[357360099,1744018243589,-204.306428,0.00037664,14]
[357360100,1744018243598,-151.0,0.00037664,14]
[357360101,1744018243608,-204.306428,0.00037664,14]
[357360102,1744018243617,-157.475513,0.00037664,14]
[357360103,1744018243626,-151.0,0.00037664,14]
[357360105,1744018243641,-151.0,0.00037664,14]
[357360107,1744018243650,-309.910532,0.00037664,2]
[357360110,1744018243660,-309.910534,0.00037664,2]
[357360112,1744018243670,-151.0,0.00037664,14]
[357360114,1744018243680,-416.73329,0.00037664,14]
[357360116,1744018243689,-151.0,0.00037664,14]
[357360118,1744018243699,-416.73328,0.00037664,14]
[357360120,1744018243708,-2880.25687,0.00037664,14]
[357360122,1744018243718,-2880.25687,0.00037664,14]
[357360124,1744018243727,-226.530204,0.00037664,14]
[357360126,1744018243737,-226.530207,0.00037664,14]
[357360128,1744018243746,-647.806011,0.00037664,14]
[357360130,1744018243756,-647.806005,0.00037664,14]
[357360132,1744018243765,-151.0,0.00037664,14]
[357360134,1744018243774,-151.0,0.00037664,14]
[357360136,1744018243784,-305.881518,0.00037664,14]
[357360138,1744018243793,-305.881518,0.00037664,14]
[357360140,1744018243802,-151.0,0.00037664,14]
[357360142,1744018243811,-151.0,0.00037664,14]
[357360144,1744018243821,-151.0,0.00037664,14]
[357360146,1744018243830,-151.0,0.00037664,14]
[357360147,1744018243839,-288.084448,0.00037664,14]
[357360149,1744018243849,-288.084448,0.00037664,14]
[357360151,1744018243859,-500.0,0.00037673,5]
[357360152,1744018243868,-500.63603819,0.00037673,5]
[357360153,1744018243878,-500.0,0.00037673,5]
[357360154,1744018243890,-500.0,0.00037673,5]
[357360155,1744018243899,-500.0,0.00037673,5]
[357360156,1744018243909,-500.82670474,0.00037673,5]
[357360157,1744018243919,-163.08606148,0.00037673,5]
[357360158,1744018243929,-501.33554795,0.00037673,5]
[357360159,1744018243940,-500.0,0.00037673,2]
[357360161,1744018243949,-261.611118,0.00037673,14]
[357360162,1744018243959,-261.611118,0.00037673,14]
[357360163,1744018243968,-441.186478,0.00037673,14]
[357360164,1744018243978,-441.186478,0.00037673,14]
[357360165,1744018243987,-268.027642,0.00037673,14]
[357360166,1744018243997,-268.027642,0.00037673,14]
[357360167,1744018244006,-151.0,0.00037685,14]
[357360168,1744018244016,-151.0,0.00037685,14]
[357360169,1744018244025,-151.0,0.00037686,14]
[357360170,1744018244035,-151.0,0.00037686,14]
[357360171,1744018244045,-151.0,0.00037686,14]
[357360172,1744018244055,-151.0,0.00037686,14]
[357360173,1744018244065,-151.0,0.00037686,14]
[357360174,1744018244075,-834.776173,0.00037686,2]
[357360175,1744018244084,-834.776173,0.00037686,2]
[357360176,1744018244094,-250.018982,0.00037686,14]
[357360177,1744018244104,-250.018982,0.00037686,14]
[357360178,1744018244114,-28006.56628179,0.00037696,3]
[357360179,1744018244123,-47693.54351281,0.00037696,2]
[357360180,1744018244136,-151.0,0.00037696,14]
[357360181,1744018244146,-296.109562,0.00037696,14]
[357360182,1744018244156,-296.109562,0.00037696,14]
[357360183,1744018244166,-151.0,0.00037696,14]
[357360184,1744018244176,-151.0,0.00037696,14]
[357360185,1744018244186,-303.375879,0.00037696,14]
[357360186,1744018244200,-303.375879,0.00037696,14]
[357360187,1744018244210,-151.0,0.00037696,14]
[357360188,1744018244220,-151.0,0.00037696,14]
[357360189,1744018244231,-151.0,0.00037696,14]
[357360190,1744018244240,-733.427941,0.00037696,14]
[357360191,1744018244250,-733.427941,0.00037696,14]
[357360192,1744018244260,-151.0,0.00037696,14]
[357360193,1744018244270,-151.0,0.00037696,14]
[357360194,1744018244280,-408.558595,0.00037696,14]
[357360195,1744018244293,-408.558595,0.00037696,14]
[357360196,1744018244302,-151.0,0.00037696,14]
[357360197,1744018244313,-354.37071,0.00037696,14]
[357360198,1744018244323,-354.37071,0.00037696,14]
[357360199,1744018244332,-151.0,0.00037696,14]
[357360200,1744018244341,-366.689519,0.00037696,14]
[357360201,1744018244351,-366.689519,0.00037696,14]
[357360202,1744018244361,-151.0,0.00037696,14]
[357360203,1744018244371,-383.156646,0.00037696,14]
[357360204,1744018244382,-383.156646,0.00037696,14]
[357360205,1744018244392,-326.229334,0.00037696,14]
[357360206,1744018244401,-326.229334,0.00037696,14]
[357360207,1744018244411,-151.0,0.00037696,14]
[357360208,1744018244421,-151.0,0.00037696,14]
[357360209,1744018244430,-157.475513,0.00037696,14]
[357360210,1744018244440,-204.306428,0.00037696,14]
[357360211,1744018244450,-291.737193,0.00037696,14]
[357360212,1744018244459,-204.306428,0.00037696,14]
[357360213,1744018244469,-157.475513,0.00037696,14]
[357360214,1744018244479,-281.095911,0.00037696,14]
[357360215,1744018244489,-2880.25687,0.00037696,14]
[357360216,1744018244499,-2880.2568603,0.00037696,14]
[357360217,1744018244509,-38584.59700254,0.00037696,2]
[357360218,1744018244519,-1681.08328722,0.00037696,2]
[357360219,1744018244528,-163.382346,0.00037696,14]
[357360220,1744018244538,-1203.337461,0.00037696,14]
[357360221,1744018244548,-1203.337461,0.00037696,14]
[357360222,1744018244558,-151.0,0.00037696,14]
[357360223,1744018244568,-882.467378,0.00037696,14]
[357360224,1744018244577,-882.467378,0.00037696,14]
[357360225,1744018244587,-151.0,0.00037696,14]
[357360226,1744018244596,-542.49516,0.00037696,14]
[357360227,1744018244606,-542.49516,0.00037696,14]
[357360228,1744018244616,-185.276685,0.00037696,14]
[357360229,1744018244626,-185.276685,0.00037696,14]
[357360230,1744018244638,-305.881518,0.00037696,14]
[357360231,1744018244648,-305.881518,0.00037696,14]
[357360232,1744018244659,-546.228828,0.00037696,14]
[357360233,1744018244668,-546.228828,0.00037696,14]
[357360234,1744018244678,-151.0,0.00037696,14]
[357360235,1744018244688,-522.793102,0.00037696,14]
[357360236,1744018244697,-522.793102,0.00037696,14]
[357360237,1744018244707,-151.0,0.00037696,14]
[357360238,1744018244717,-151.0,0.00037696,14]
[357360239,1744018244727,-151.0,0.00037696,14]
[357360240,1744018244737,-151.0,0.00037696,14]
[357360241,1744018244746,-151.0,0.00037696,14]
[357360242,1744018244755,-288.084448,0.00037696,14]
[357360243,1744018244765,-288.084448,0.00037696,14]
[357360244,1744018244775,-2767.68361372,0.00037728,14]
[357360245,1744018244784,-261.611118,0.00037764,14]
[357360246,1744018244793,-261.611118,0.00037764,14]
[357360247,1744018244803,-151.0,0.000378,10]
[357360248,1744018244812,-500.0,0.00037884,7]
[357360249,1744018244822,-151.0,0.000379,18]
[357360250,1744018244832,-187.14101864,0.00037967,2]
[357360251,1744018244841,-151.0,0.00037972,14]
[357360252,1744018244851,-296.109562,0.00037972,14]
[357360253,1744018244861,-296.109562,0.00037972,14]
[357360254,1744018244871,-151.0,0.00037972,14]
[357360255,1744018244882,-303.375879,0.00037972,14]
[357360256,1744018244892,-303.375879,0.00037972,14]
[357360257,1744018244902,-151.0,0.00037972,14]
[357360258,1744018244911,-151.0,0.0003798,14]
[357360259,1744018244921,-151.0,0.0003798,14]
[357360260,1744018244931,-155.14418,0.0003798,14]
[357360261,1744018244940,-408.558595,0.0003798,14]
[357360262,1744018244950,-408.558595,0.0003798,14]
[357360263,1744018244960,-151.0,0.0003798,14]
[357360264,1744018244970,-354.37071,0.0003798,14]
[357360265,1744018244979,-354.37071,0.0003798,14]
[357360266,1744018244989,-151.0,0.0003798,14]
[357360267,1744018244999,-366.689519,0.0003798,14]
[357360268,1744018245008,-366.689519,0.0003798,14]
[357360269,1744018245017,-326.229334,0.0003798,14]
[357360270,1744018245027,-326.229334,0.0003798,14]
[357360271,1744018245037,-204.306428,0.0003798,14]
[357360272,1744018245046,-204.306428,0.0003798,14]
[357360273,1744018245055,-151.0,0.0003799,14]
[357360274,1744018245158,-151.0,0.0003799,14]
[357360275,1744018245169,-151.0,0.0003799,14]
[357360276,1744018245179,-151.0,0.0003799,14]
[357360277,1744018245189,-382.79533106,0.0003799,14]
[357360278,1744018245559,-58.39114694,0.0003799,14]
[357360279,1744018245569,-441.186478,0.0003799,14]
[357360280,1744018245579,-268.027642,0.0003799,14]
[357360281,1744018245589,-268.027642,0.0003799,14]